Cogmind - Beta 16.1 @@@ ROGUE MODE // 2026.03.20 @ 20:15:31 Player: Ez Result: Destroyed by G-34 Mercenary with Small Laser Performance ------------- Evolutions (0) 0 Regions Visited (1) 200 Robots Destroyed (8) 40 Value Destroyed (176) 176 Prototype IDs (0) 0 Alien Tech Used (0) 0 Bonus (0) 0 TOTAL SCORE: 416 Bonus ------- None Cogmind --------- Core Integrity 0/250 Matter 164/300 Energy 250/250 System Corruption 0% Temperature Cool (6) Movement Core (200) Ox3 Location -10/Materials Parts ------- > --- POWER (1) -------- Ion Engine > --- PROPULSION (2) --- (None) > --- UTILITY (2) ------ Small Storage Unit Propulsion Shielding > --- WEAPON (2) ------- Light Assault Rifle > --- INVENTORY (8) ---- Ion Engine Large Storage Unit Grenade Launcher Peak State ------------ > --- POWER ------------ Ion Engine > --- PROPULSION ------- Light Treads Light Treads > --- UTILITY ---------- Small Storage Unit Propulsion Shielding > --- WEAPON ----------- Assault Rifle Light Assault Rifle > --- INVENTORY -------- Ion Engine Large Storage Unit Grenade Launcher [Rating: 7] Favorites ----------- Power Ion Engine Engine Ion Engine Propulsion Light Treads Treads Light Treads Utility Small Storage Unit Storage Small Storage Unit Protection Propulsion Shielding Weapon Assault Rifle Ballistic Gun Assault Rifle Build | -11 -10 ------- Run | Yrd Mat Slots Evolved . | . . Power . | . . Propulsion . | . . Utility . | . . Weapon . | . . Parts Attached 8 | 5 3 Power 2 | 1 1 Engine 2 | 1 1 Core . | . . Reactor . | . . Propulsion 2 | 2 . Treads 2 | 2 . Leg . | . . Wheel . | . . Hover . | . . Flight . | . . Utility 2 | 1 1 Device . | . . Storage 1 | 1 . Processor . | . . Hackware . | . . Protection 1 | . 1 Artifact . | . . Weapon 2 | 1 1 Energy Gun . | . . Energy Cannon . | . . Ballistic Gun 2 | 1 1 Ballistic Cannon . | . . Launcher . | . . Special Weapon . | . . Impact Weapon . | . . Slashing Weapon . | . . Piercing Weapon . | . . Special Melee Weapon . | . . Unidentified Prototypes . | . . Parts Lost 3 | . 3 Power . | . . Propulsion 2 | . 2 Utility . | . . Weapon 1 | . 1 Highest Loss Streak 3 | . 3 To Critical Strikes . | . . Average Backups 1 | . 2 Power . | . 1 Propulsion . | . . Utility . | . . Weapon . | . . Tool/Special . | . . Unused Backups 3 | . 3 Power 1 | . 1 Propulsion . | . . Utility 1 | . 1 Weapon 1 | . 1 Tool/Special . | . . Average Slot Usage (%) 71 | . 71 Engine 14 | . 14 Treads 23 | . 23 Storage 14 | . 14 Protection 2 | . 2 Ballistic Gun 15 | . 15 Peak Build Rating 7 | 5 7 Average Rating 4 | 3 5 On Entrance 2 | . 5 Avg Prop Armor Cover (%) . | . . Naked Turns . | . . Heaviest Build 14 | 12 14 Greatest Support 40 | 40 40 Greatest Overweight (x) 3 | 1 3 Average Overweight (x) . | . . Largest Inventory Capacity 8 | 8 8 Average Capacity 7 | 6 8 Most Carried 3 | 1 3 Average Carried 1 | . 2 Final Capacity 8 | 8 8 Final Carried 3 | 1 3 Class Distribution -------------------- 100% | Mutant Dominant Class ---------------- Mutant | -10/Materials Resources | -11 -10 ----------- Run | Yrd Mat Matter Collected 244 | 66 178 Remotely . | . . Salvage Created 204 | . 204 Parts 20 | . 20 Haulers Intercepted . | . . Recyclers Shooed . | . . Parts Field Recycled . | . . Retrieved Matter . | . . Parts Self-Destructed . | . . Prevented . | . . Parts Restored . | . . Kills | -11 -10 ------- Run | Yrd Mat Combat Hostiles Destroyed 6 | . 6 Guns 6 | . 6 Classes Destroyed 4 | . 4 Builder 1 | . 1 Watcher 1 | . 1 Swarmer 3 | . 3 Grunt 3 | . 3 Best Kill Streak 3 | . 3 Combat Bots Only 3 | . 3 Max Kills in Single Turn 1 | . 1 Gunslinging . | . . Exploded . | . . Melee . | . . Uniques/NPCs Destroyed . | . . Combat | -11 -10 -------- Run | Yrd Mat Hostile Shots Fired 100 | . 100 Missed 23 | . 23 Hits 77 | . 77 Projectile 77 | . 77 Critical Strikes 1 | . 1 Damage Taken 858 | . 858 Core 256 | . 256 Absorbed by Shields . | . . Redirected to Shielding 15 | . 15 Core Remaining (%) 100 | 100 . Volleys Fired 51 | . 51 Largest 2 | . 2 Hottest 40 | . 40 Shots Fired 53 | . 53 Gun 53 | . 53 Cannon . | . . Launcher . | . . Special . | . . Kinetic 53 | . 53 Thermal . | . . Explosive . | . . Electromagnetic . | . . Robot Hit Streak 14 | . 14 Robot Miss Streak 2 | . 2 Penetration Max . | . . Secondary Targets . | . . Shots Hit Robots 37 | . 37 Core Hits 14 | . 14 Critical Kills . | . . Critical Parts Destroyed . | . . Critical Strikes . | . . Melee Attacks . | . . Impact . | . . Slashing . | . . Piercing . | . . Sneak Attacks . | . . Combat Hostiles . | . . Follow-up Attacks . | . . Damage Inflicted 395 | . 395 Guns 395 | . 395 Cannons . | . . Explosions . | . . Melee . | . . Ramming . | . . Kinetic 395 | . 395 Thermal . | . . Explosive . | . . Electromagnetic . | . . Impact . | . . Slashing . | . . Piercing . | . . Highest Corruption . | . . Average Corruption . | . . Corruption Purged . | . . Corruption Blocked . | . . Overload Shots . | . . Overflow Damage . | . . Projectiles . | . . Explosions . | . . Melee . | . . Knockbacks . | . . Impact . | . . Kinetic . | . . Secondary . | . . Self-Inflicted Damage . | . . Shots . | . . Rammed . | . . Targets Rammed . | . . Kicked . | . . Crushed . | . . Highest Temperature 27 | . 27 Average Temperature 6 | . 6 Received Heat Transfer 417 | . 417 Siege Activations . | . . Martial Activations . | . . Shielding Activations . | . . Robots Disrupted . | . . Combat Hostiles . | . . Robots Corrupted . | . . Combat Hostiles . | . . Parts Fried . | . . Impact Corruptions . | . . Robots Melted . | . . Combat Hostiles . | . . Parts Melted . | . . Heat Transferred . | . . Parts Sabotaged . | . . Parts Stolen . | . . Parts Stripped . | . . Power Chain Reactions . | . . Alert | -11 -10 ------- Run | Yrd Mat Maximum Alert Level . | . . Low Security (%) 100 | 100 100 Level 1 . | . . Level 2 . | . . Level 3 . | . . Level 4 . | . . Level 5 . | . . High Security . | . . Max Security . | . . Peak Influence 70 | . 70 Initial . | . . Average 25 | . 31 Influence Increases 167 | . 167 Destroy 0b10 Robot/C 120 | . 120 Destroy 0b10 Robot/NC 10 | . 10 Destroy Leader 22 | . 22 Disable Machine 15 | . 15 Influence Decreases 147 | . 147 Time Decay 127 | . 127 Lost Part 20 | . 20 Squads Dispatched . | . . Investigation . | . . Extermination . | . . Reinforcement . | . . Assault . | . . Garrison . | . . Intercept . | . . Searches Triggered . | . . Construction Impeded . | . . Haulers Reinforced . | . . Active Scanning Responses . | . . Cargo Convoy Interrupts . | . . Stealth | -11 -10 --------- Run | Yrd Mat Distress Signals 1 | . 1 Communications Jammed . | . . Distress Signals . | . . Times Spotted 9 | . 9 Peak Tracking Total 4 | . 4 Tactical Retreats . | . . Traps | -11 -10 ------- Run | Yrd Mat Traps Triggered . | . . Indirectly . | . . Trap Hack Attempts . | . . Triggered . | . . Disarmed . | . . Reprogrammed . | . . Reused . | . . Traps Extracted . | . . Installed . | . . Triggered . | . . Machines | -11 -10 ---------- Run | Yrd Mat Machines Disabled 1 | . 1 Max in Single Turn 1 | . 1 Machines Repaired . | . . Machines Dismantled . | . . Machines Sabotaged . | . . Overloaded Fab Kills . | . . Hacking | -11 -10 --------- Run | Yrd Mat Machines Accessed . | . . Terminals . | . . Fabricators . | . . Repair Stations . | . . Recycling Units . | . . Scanalyzers . | . . Garrison Access . | . . Total Hacks . | . . Successful . | . . Failed . | . . Catastrophic . | . . Database Lockouts . | . . Manual . | . . Terminals . | . . Fabricators . | . . Repair Stations . | . . Recycling Units . | . . Scanalyzers . | . . Garrison Access . | . . Terminal Hacks . | . . Fabricator Hacks . | . . Repair Station Hacks . | . . Recycling Unit Hacks . | . . Scanalyzer . | . . Garrison Access Hacks . | . . Unauthorized Hacks . | . . Terminals . | . . Fabricators . | . . Repair Stations . | . . Recycling Units . | . . Scanalyzers . | . . Garrison Access . | . . Data Cores Recovered . | . . Used . | . . Hacking Detections . | . . Full Trace Events . | . . Feedback Events . | . . Feedback Blocked . | . . Robot Schematics Acquired . | . . Robots Built . | . . Authchips . | . . Time . | . . Total Robot Build Rating . | . . Part Schematics Acquired . | . . Parts Built . | . . Authchips . | . . Time . | . . Total Part Build Rating . | . . Part Studies Acquired . | . . Parts Repaired . | . . Time . | . . Parts Recycled . | . . Recycled Matter . | . . Retrieved Matter . | . . Retrieved Components . | . . Parts Scanalyzed . | . . Part Schematics Acquired . | . . Parts Damaged . | . . Bothacking | -11 -10 ------------ Run | Yrd Mat Used RIF Installer . | . . Robots Hacked . | . . Non-combat . | . . Combat . | . . Robot Hacks Applied . | . . Relay Couplers Released . | . . Fabnet Peak Effective % . | . . Robots Rewired . | . . Allies Hacked . | . . Hacks Repelled . | . . Allies | -11 -10 -------- Run | Yrd Mat Total Allies . | . . Largest Group . | . . Highest-Rated Group . | . . Highest-Rated Ally . | . . Total Orders . | . . Ally Attacks . | . . Total Damage . | . . Kills . | . . Allies Corrupted . | . . Allies Melted . | . . Intel | -11 -10 ------- Run | Yrd Mat Active Infowar (turns) . | . . Robot Analysis Total . | . . Derelict Logs Recovered . | . . Drone Launches . | . . Drone Recoveries . | . . Exploration | -11 -10 ------------- Run | Yrd Mat Turns Passed 371 | 68 303 Spaces Moved 162 | 43 119 Core 9 | 8 1 Treads 153 | 35 118 Legs . | . . Wheels . | . . Hover . | . . Flight . | . . Fastest Speed 50 | 50 160 Average Speed 155 | 140 160 Slowest Speed 200 | 160 200 Overloaded Moves . | . . Propulsion Burnouts . | . . Robots Hopped . | . . Potential Cave-ins . | . . Cave-ins Triggered . | . . Exploration Rate (%) 15 | 3 27 Regions Visited 1 Branch Regions . Pre-discovered Areas . | . . Known Exits Taken . | . . Unknown Exits Taken 1 | 1 . Scrap Searched . | . . Spaces Dug . | . . Terrain Destroyed . | . . Melee . | . . Projectile . | . . AOE . | . . Terrain Rammed . | . . Walls Destroyed . | . . Machines Disabled . | . . Actions | -11 -10 --------- Run | Yrd Mat Total 231 | 49 182 Wait 5 | . 5 Move 161 | 42 119 Hop . | . . Pick Up 5 | 2 3 Fast Attach 6 | 4 2 Attach 1 | 1 . Detach . | . . Swap 1 | . 1 Drop 1 | . 1 Fire 51 | . 51 Melee . | . . Ram . | . . Kick . | . . Crush . | . . Escape Stasis . | . . Rewire . | . . Trap . | . . Miscellaneous . | . . Route ------- -11/Scrapyard -10/Materials History --------- Turn | Location | Event 11 | -11/Scrapyard | Discovered new exit (range 16) 69 | -11/Scrapyard | Entered Materials 305 | -10/Materials | Build established: Mutant 324 | -10/Materials | Core integrity fell below 50% 342 | -10/Materials | Core integrity fell below 20% 366 | -10/Materials | Lost 3 parts (2n1w) 372 | -10/Materials | Destroyed by G-34 Mercenary with Small Laser Last Messages --------------- R-06 Scavenger collects Sml. Laser. Electrolysis Chamber disabled. R-06 Scavenger collects Ion Engine. R-06 Scavenger collects Aluminum Leg. Acquired Lrg. Storage Unit. G-34 Mercenary destroyed. Acquired 50 matter. Dropped Ion Engine. Acquired Ion Engine. Acquired 30 matter. R-06 Scavenger collects Ion Engine. Acquired Lgt. Assault Rifle. Acquired Propulsion Shielding. Lgt. Treads destroyed. Assault Rifle destroyed. Lgt. Treads destroyed. Critical hit (Burn: +37). G-47 Trooper destroyed. R-06 Scavenger collects Aluminum Leg. Acquired 56 matter. Map ----- +----------------------------------------------------+ | ??????????????????????????????? | | ??????????????????????????????? | | ?????????????????????????###### | | ?????????????????????????# | | ?????????????????????????# | | ?????????????????????????# | | ?????????????????????????# """ | | ?????????????????????????# """ | | ?????????????????????????# """ | | ?????????????????????????# | | ????????????? ???????????# """ | | ????????????? ?????????# """ | | ????????????# ##???????# """ | | ???????????? ##/?????# | | ???????????? ?????###### | | ???????????? T ?????????? | | ???????????? ?????????? | | ???????????? ## ????????? | | ????????????# #?# ######### | | ???????#+#### #?# | | ???????# ### | | ???????# ""# | | ?####### ""######+###### | | #! !! # % T"# #????? | | # !! #r ! ""# "" #????? | | # ! @g ""# """ #????? | | # r#g ### """ #????? | | # # #?# #????? | | # ###### #?# """ #????? | | ########????# #?# """ #????? | | ????????????# ### """ #????? | | ????????????# # #????? | | ????????????# # """ #????? | | ????????????# " + """ #????? | | ????????????#! # """ #????? | | ????????????# # #????? | | ????????????## #########????? | | ?????????????# #????????????? | | ?????????????# +????????????? | | ?????????????# #????????????? | | ?????????????# #????????????? | | ?????????????# #????????????? | | ?????????????# #????????????? | | ?????????????+ #????????????? | | ?????????????# #????????????? | | ?????????????# #????????????? | | ?????????????# #????????????? | | ?????????????# ?????????????? | | ??????????????????????????????? | | ??????????????????????????????? | +----------------------------------------------------+ Best States ------------- Heat Dissipation 25 Energy Generation 10 Energy Capacity 250 Matter Stores 141 Matter Capacity 300 Sight Range 16 Terrain Scan Density 10 Propulsion Shielding 33 Evasion (%) 40 Recoil Reduction 2 Item Schematics ----------------- None Robot Schematics ------------------ None Fabricated ------------ Nothing Repaired ---------- Nothing Studied --------- None Alien Tech Used ----------------- None Achievements -------------- None Challenges ------------ None Game ------ Seed NuclearUtilityJets Manual? 0 Play Time 00:05:32 Cumulative 28.0 hours Start 2026.03.20 @ 20:08:35 End 2026.03.20 @ 20:15:31 Sessions 1 Manual Loads 0 Difficulty Rogue Special Mode None Game No. 78 Rogue 76 Adventurer 2 Explorer 0 Win Type - Total 0 Types 0/0/0/0/0/0/0/0/0/0 Lore% 7 Gallery% 19 Achievement% 16 Wizard Run 0 Options --------- Layout 1 ASCII 0 Keyboard 1 Movement Numpad Keybinds 0 Fullscreen 2 Font 32/SmallcapsGlow Map View 50x35 Zoom Use 0% Tactical HUD 0 Map Filters NONE Filters NONE Steam 1 RUN: e431408d-19bb-4b47-85ce-cefc7f6fe9e5